[Event "December 5 Late 2023"]
[Site "https://www.chess.com"]
[Date "2023.12.05"]
[Round "6"]
[White "Tari, Aryan"]
[Black "Alexandre, Anne Shopie Elizabeth"]
[Result "0-1"]
[Board "13"]
[TimeControl "180+1"]
[WhiteFideId "1510045"]
[BlackFideId "11902418"]
[WhiteElo "3009"]
[BlackElo "2867"]
[WhiteTeam "NOR"]
[BlackTeam "HAI"]
[WhiteClock "0:00:00"]
[BlackClock "0:00:42"]

1. c4 {[%clk 0:02:46]}  e5 {[%clk 0:02:58]} 2. a3 {[%clk 0:02:37]}  g6 {[%clk 0:02:56]} 3. h4 {[%clk 0:02:37]}  h6 {[%clk 0:02:54]} 4. d4 {[%clk 0:02:23]}  d6 {[%clk 0:02:54]} 5. dxe5 {[%clk 0:02:14]}  dxe5 {[%clk 0:02:53]} 6. Qxd8+ {[%clk 0:02:15]}  Kxd8 {[%clk 0:02:54]} 7. Nc3 {[%clk 0:02:16]}  Bg7 {[%clk 0:02:53]} 8. Nf3 {[%clk 0:02:04]}  c6 {[%clk 0:02:53]} 9. Be3 {[%clk 0:01:48]}  Kc7 {[%clk 0:02:52]} 10. Nd2 {[%clk 0:01:37]}  Be6 {[%clk 0:02:52]} 11. g3 {[%clk 0:01:30]}  Nd7 {[%clk 0:02:52]} 12. O-O-O {[%clk 0:01:27]}  Ne7 {[%clk 0:02:52]} 13. f3 {[%clk 0:01:22]}  Nf5 {[%clk 0:02:51]} 14. Bf2 {[%clk 0:01:22]}  h5 {[%clk 0:02:51]} 15. Nce4 {[%clk 0:01:20]}  f6 {[%clk 0:02:46]} 16. e3 {[%clk 0:01:13]}  a5 {[%clk 0:02:42]} 17. f4 {[%clk 0:01:10]}  Rhe8 {[%clk 0:02:33]} 18. Bh3 {[%clk 0:01:08]}  Nh6 {[%clk 0:02:30]} 19. Bxe6 {[%clk 0:01:07]}  Rxe6 {[%clk 0:02:30]} 20. Rhe1 {[%clk 0:01:07]}  Rae8 {[%clk 0:02:27]} 21. Nb3 {[%clk 0:01:05]}  exf4 {[%clk 0:02:20]} 22. Rxd7+ {[%clk 0:00:36]}  Kxd7 {[%clk 0:02:20]} 23. Nec5+ {[%clk 0:00:31]}  Kc7 {[%clk 0:02:19]} 24. Nxe6+ {[%clk 0:00:30]}  Rxe6 {[%clk 0:02:19]} 25. Nc5 {[%clk 0:00:25]}  Re7 {[%clk 0:02:06]} 26. exf4 {[%clk 0:00:25]}  Rxe1+ {[%clk 0:02:06]} 27. Bxe1 {[%clk 0:00:26]}  Kb6 {[%clk 0:02:01]} 28. Nd7+ {[%clk 0:00:24]}  Kc7 {[%clk 0:02:00]} 29. Nc5 {[%clk 0:00:24]}  Kb6 {[%clk 0:02:01]} 30. Bf2 {[%clk 0:00:24]}  Nf5 {[%clk 0:01:57]} 31. Ne6+ {[%clk 0:00:22]}  c5 {[%clk 0:01:57]} 32. Nxc5 {[%clk 0:00:21]}  Kc6 {[%clk 0:01:55]} 33. Ne4 {[%clk 0:00:21]}  a4 {[%clk 0:01:42]} 34. Kc2 {[%clk 0:00:20]}  Nd6 {[%clk 0:01:43]} 35. Nxd6 {[%clk 0:00:17]}  Kxd6 {[%clk 0:01:44]} 36. Bd4 {[%clk 0:00:18]}  Ke6 {[%clk 0:01:44]} 37. Kd3 {[%clk 0:00:16]}  Kf5 {[%clk 0:01:44]} 38. c5 {[%clk 0:00:13]}  Kg4 {[%clk 0:01:39]} 39. Kc4 {[%clk 0:00:14]}  Kxg3 {[%clk 0:01:37]} 40. Kb5 {[%clk 0:00:14]}  Kxh4 {[%clk 0:01:13]} 41. Kb6 {[%clk 0:00:15]}  Bf8 {[%clk 0:00:52]} 42. Kxb7 {[%clk 0:00:13]}  Bxc5 {[%clk 0:00:52]} 43. Bxc5 {[%clk 0:00:14]}  Kg4 {[%clk 0:00:53]} 44. f5 {[%clk 0:00:05]}  gxf5 {[%clk 0:00:51]} 45. Kc6 {[%clk 0:00:05]}  h4 {[%clk 0:00:49]} 46. Kb5 {[%clk 0:00:03]}  h3 {[%clk 0:00:45]} 47. Bg1 {[%clk 0:00:00]}  Kg3 {[%clk 0:00:42]} 0-1

[Event "December 5 Late 2023"]
[Site "https://www.chess.com"]
[Date "2023.12.05"]
[Round "6"]
[White "Kazakouski, Valery"]
[Black "Deac, Bogdan-Daniel"]
[Result "0-1"]
[Board "14"]
[TimeControl "180+1"]
[WhiteFideId "13507443"]
[BlackFideId "1226380"]
[WhiteElo "2852"]
[BlackElo "2994"]
[WhiteTeam "LTU"]
[BlackTeam "ROU"]
[WhiteClock "0:00:00"]
[BlackClock "0:00:05"]

1. e4 {[%clk 0:02:57]}  e5 {[%clk 0:02:59]} 2. Nf3 {[%clk 0:02:57]}  Nc6 {[%clk 0:02:59]} 3. Bc4 {[%clk 0:02:57]}  d6 {[%clk 0:02:59]} 4. Nc3 {[%clk 0:02:56]}  Be7 {[%clk 0:02:57]} 5. d4 {[%clk 0:02:54]}  Nf6 {[%clk 0:02:50]} 6. h3 {[%clk 0:02:45]}  exd4 {[%clk 0:02:40]} 7. Nxd4 {[%clk 0:02:45]}  Ne5 {[%clk 0:02:40]} 8. Be2 {[%clk 0:02:40]}  O-O {[%clk 0:02:37]} 9. O-O {[%clk 0:02:39]}  Re8 {[%clk 0:02:37]} 10. a4 {[%clk 0:02:31]}  a6 {[%clk 0:02:34]} 11. Bf4 {[%clk 0:02:27]}  Bf8 {[%clk 0:02:32]} 12. Bg3 {[%clk 0:02:13]}  Rb8 {[%clk 0:02:23]} 13. a5 {[%clk 0:02:09]}  c5 {[%clk 0:02:13]} 14. Nb3 {[%clk 0:02:09]}  Nc6 {[%clk 0:02:11]} 15. Bc4 {[%clk 0:01:55]}  Be6 {[%clk 0:01:49]} 16. Bxe6 {[%clk 0:01:52]}  fxe6 {[%clk 0:01:49]} 17. Re1 {[%clk 0:01:37]}  Rc8 {[%clk 0:01:32]} 18. e5 {[%clk 0:01:37]}  dxe5 {[%clk 0:01:32]} 19. Bxe5 {[%clk 0:01:37]}  c4 {[%clk 0:00:53]} 20. Bxf6 {[%clk 0:01:17]}  Qxd1 {[%clk 0:00:52]} 21. Nxd1 {[%clk 0:01:11]}  cxb3 {[%clk 0:00:21]} 22. Bc3 {[%clk 0:01:11]}  bxc2 {[%clk 0:00:21]} 23. Ne3 {[%clk 0:01:12]}  Nb4 {[%clk 0:00:21]} 24. Rec1 {[%clk 0:01:12]}  Nd5 {[%clk 0:00:15]} 25. Rxc2 {[%clk 0:01:10]}  Nxc3 {[%clk 0:00:13]} 26. Rxc3 {[%clk 0:01:08]}  Rxc3 {[%clk 0:00:11]} 27. bxc3 {[%clk 0:01:08]}  Rc8 {[%clk 0:00:12]} 28. Rb1 {[%clk 0:00:55]}  Rc7 {[%clk 0:00:11]} 29. Kf1 {[%clk 0:00:53]}  Bc5 {[%clk 0:00:07]} 30. Nd1 {[%clk 0:00:48]}  Kf7 {[%clk 0:00:06]} 31. Ke2 {[%clk 0:00:49]}  Ke7 {[%clk 0:00:06]} 32. f4 {[%clk 0:00:42]}  Kd6 {[%clk 0:00:06]} 33. Nb2 {[%clk 0:00:39]}  Kd5 {[%clk 0:00:05]} 34. Kd3 {[%clk 0:00:39]}  Bd6 {[%clk 0:00:04]} 35. g3 {[%clk 0:00:37]}  Rc5 {[%clk 0:00:04]} 36. Ra1 {[%clk 0:00:28]}  Bc7 {[%clk 0:00:04]} 37. Na4 {[%clk 0:00:19]}  Rxa5 {[%clk 0:00:03]} 38. c4+ {[%clk 0:00:19]}  Kc6 {[%clk 0:00:03]} 39. Ke4 {[%clk 0:00:12]}  h5 {[%clk 0:00:03]} 40. g4 {[%clk 0:00:11]}  hxg4 {[%clk 0:00:02]} 41. hxg4 {[%clk 0:00:12]}  g6 {[%clk 0:00:03]} 42. Ra2 {[%clk 0:00:11]}  Bd6 {[%clk 0:00:03]} 43. Ra1 {[%clk 0:00:08]}  Kc7 {[%clk 0:00:03]} 44. Ra2 {[%clk 0:00:07]}  Kc6 {[%clk 0:00:03]} 45. Ra1 {[%clk 0:00:07]}  Bb8 {[%clk 0:00:04]} 46. Ra2 {[%clk 0:00:07]}  Ba7 {[%clk 0:00:05]} 47. Ra1 {[%clk 0:00:06]}  Bc5 {[%clk 0:00:05]} 48. Ra2 {[%clk 0:00:06]}  Bb4 {[%clk 0:00:05]} 49. Kd4 {[%clk 0:00:05]}  Kc7 {[%clk 0:00:05]} 50. c5 {[%clk 0:00:02]}  Bxc5+ {[%clk 0:00:05]} 51. Ke4 {[%clk 0:00:01]}  Bd6 {[%clk 0:00:05]} 52. Rc2+ {[%clk 0:00:01]}  Kd8 {[%clk 0:00:05]} 53. Nb2 {[%clk 0:00:02]}  Rb5 {[%clk 0:00:05]} 54. Nc4 {[%clk 0:00:02]}  Ke7 {[%clk 0:00:05]} 55. Rd2 {[%clk 0:00:02]}  Bc7 {[%clk 0:00:05]} 56. Rc2 {[%clk 0:00:01]}  Rb4 {[%clk 0:00:05]} 57. Kd3 {[%clk 0:00:01]}  Bxf4 {[%clk 0:00:05]} 58. Nb2 {[%clk 0:00:00]}  b5 {[%clk 0:00:05]} 0-1

[Event "December 5 Late 2023"]
[Site "https://www.chess.com"]
[Date "2023.12.05"]
[Round "6"]
[White "Rustemov, Alexander"]
[Black "Terry, Renato"]
[Result "0-1"]
[Board "15"]
[TimeControl "180+1"]
[WhiteFideId "4119002"]
[BlackFideId "3803457"]
[WhiteElo "2838"]
[BlackElo "2978"]
[WhiteTeam "RUS"]
[BlackTeam "PER"]
[WhiteClock "0:00:00"]
[BlackClock "0:00:09"]

1. d4 {[%clk 0:02:57]}  e6 {[%clk 0:02:59]} 2. Nf3 {[%clk 0:02:55]}  Nf6 {[%clk 0:03:00]} 3. c4 {[%clk 0:02:54]}  b6 {[%clk 0:02:58]} 4. a3 {[%clk 0:02:54]}  Bb7 {[%clk 0:02:57]} 5. Nc3 {[%clk 0:02:54]}  d5 {[%clk 0:02:51]} 6. Bg5 {[%clk 0:02:53]}  Be7 {[%clk 0:02:50]} 7. Bxf6 {[%clk 0:02:53]}  Bxf6 {[%clk 0:02:49]} 8. cxd5 {[%clk 0:02:54]}  exd5 {[%clk 0:02:50]} 9. Qa4+ {[%clk 0:02:54]}  c6 {[%clk 0:02:48]} 10. g3 {[%clk 0:02:55]}  O-O {[%clk 0:02:48]} 11. Rd1 {[%clk 0:02:55]}  Re8 {[%clk 0:02:43]} 12. Bg2 {[%clk 0:02:55]}  Nd7 {[%clk 0:02:33]} 13. O-O {[%clk 0:02:55]}  Be7 {[%clk 0:02:19]} 14. e3 {[%clk 0:02:46]}  Bd6 {[%clk 0:02:16]} 15. Ne1 {[%clk 0:02:38]}  a5 {[%clk 0:02:05]} 16. Qb3 {[%clk 0:02:35]}  Ba6 {[%clk 0:01:54]} 17. Nd3 {[%clk 0:02:35]}  Nf6 {[%clk 0:01:55]} 18. Rfe1 {[%clk 0:02:30]}  Rc8 {[%clk 0:01:30]} 19. h3 {[%clk 0:02:04]}  h5 {[%clk 0:01:27]} 20. Qc2 {[%clk 0:02:01]}  Qd7 {[%clk 0:01:17]} 21. Nf4 {[%clk 0:01:52]}  h4 {[%clk 0:01:14]} 22. g4 {[%clk 0:01:51]}  Bxf4 {[%clk 0:00:59]} 23. exf4 {[%clk 0:01:51]}  Nxg4 {[%clk 0:01:00]} 24. hxg4 {[%clk 0:01:46]}  Qxg4 {[%clk 0:01:01]} 25. f3 {[%clk 0:01:19]}  Qxf4 {[%clk 0:01:01]} 26. Qf2 {[%clk 0:01:14]}  Rcd8 {[%clk 0:01:01]} 27. Bh3 {[%clk 0:01:12]}  Rxe1+ {[%clk 0:00:55]} 28. Rxe1 {[%clk 0:01:12]}  Rd6 {[%clk 0:00:55]} 29. Kh1 {[%clk 0:01:04]}  Rf6 {[%clk 0:00:52]} 30. Re3 {[%clk 0:01:00]}  Kh7 {[%clk 0:00:49]} 31. Ne2 {[%clk 0:00:56]}  Bxe2 {[%clk 0:00:47]} 32. Qxe2 {[%clk 0:00:55]}  Qxd4 {[%clk 0:00:45]} 33. Qd3+ {[%clk 0:00:54]}  Qxd3 {[%clk 0:00:46]} 34. Rxd3 {[%clk 0:00:55]}  Rd6 {[%clk 0:00:41]} 35. f4 {[%clk 0:00:51]}  Rf6 {[%clk 0:00:27]} 36. Rf3 {[%clk 0:00:45]}  g5 {[%clk 0:00:22]} 37. Kg2 {[%clk 0:00:42]}  gxf4 {[%clk 0:00:22]} 38. Kf2 {[%clk 0:00:36]}  Kh6 {[%clk 0:00:22]} 39. b4 {[%clk 0:00:36]}  axb4 {[%clk 0:00:20]} 40. axb4 {[%clk 0:00:37]}  Kg5 {[%clk 0:00:20]} 41. Rc3 {[%clk 0:00:36]}  Rd6 {[%clk 0:00:20]} 42. Bg2 {[%clk 0:00:35]}  Kf5 {[%clk 0:00:19]} 43. Bf3 {[%clk 0:00:31]}  Ke5 {[%clk 0:00:19]} 44. Rc1 {[%clk 0:00:26]}  h3 {[%clk 0:00:19]} 45. Rh1 {[%clk 0:00:18]}  Rh6 {[%clk 0:00:17]} 46. Bg4 {[%clk 0:00:12]}  h2 {[%clk 0:00:16]} 47. Bf3 {[%clk 0:00:12]}  Kd4 {[%clk 0:00:15]} 48. b5 {[%clk 0:00:10]}  cxb5 {[%clk 0:00:09]} 49. Rd1+ {[%clk 0:00:11]}  Kc3 {[%clk 0:00:08]} 50. Rxd5 {[%clk 0:00:10]}  h1=Q {[%clk 0:00:06]} 51. Bxh1 {[%clk 0:00:10]}  Rxh1 {[%clk 0:00:07]} 52. Rxb5 {[%clk 0:00:10]}  Rh6 {[%clk 0:00:07]} 53. Kf3 {[%clk 0:00:06]}  Rf6 {[%clk 0:00:07]} 54. Rh5 {[%clk 0:00:03]}  Kc4 {[%clk 0:00:07]} 55. Rh1 {[%clk 0:00:02]}  b5 {[%clk 0:00:08]} 56. Rc1+ {[%clk 0:00:02]}  Kb4 {[%clk 0:00:08]} 57. Rb1+ {[%clk 0:00:02]}  Ka5 {[%clk 0:00:08]} 58. Ra1+ {[%clk 0:00:03]}  Kb6 {[%clk 0:00:09]} 59. Rb1 {[%clk 0:00:04]}  Rc6 {[%clk 0:00:08]} 60. Kxf4 {[%clk 0:00:03]}  Rc4+ {[%clk 0:00:08]} 61. Ke5 {[%clk 0:00:03]}  b4 {[%clk 0:00:08]} 62. Kd5 {[%clk 0:00:03]}  Kb5 {[%clk 0:00:08]} 63. Rf1 {[%clk 0:00:02]}  Rc7 {[%clk 0:00:08]} 64. Kd6 {[%clk 0:00:02]}  Rb7 {[%clk 0:00:08]} 65. Kd5 {[%clk 0:00:02]}  b3 {[%clk 0:00:08]} 66. Kd4 {[%clk 0:00:02]}  Kb4 {[%clk 0:00:08]} 67. Kd3 {[%clk 0:00:03]}  Rd7+ {[%clk 0:00:09]} 68. Ke3 {[%clk 0:00:00]}  b2 {[%clk 0:00:09]} 0-1

[Event "December 5 Late 2023"]
[Site "https://www.chess.com"]
[Date "2023.12.05"]
[Round "6"]
[White "Gadimbayli, Abdulla"]
[Black "Martinez Alcantara, Jose Eduardo"]
[Result "0-1"]
[Board "16"]
[TimeControl "180+1"]
[WhiteFideId "13404938"]
[BlackFideId "3805662"]
[WhiteElo "2829"]
[BlackElo "2972"]
[WhiteTeam "AZE"]
[BlackTeam "PER"]
[WhiteClock "0:00:16"]
[BlackClock "0:00:33"]

1. e4 {[%clk 0:03:00]}  c5 {[%clk 0:02:57]} 2. Nf3 {[%clk 0:03:00]}  d6 {[%clk 0:02:58]} 3. d4 {[%clk 0:03:00]}  cxd4 {[%clk 0:02:59]} 4. Nxd4 {[%clk 0:03:01]}  a6 {[%clk 0:03:00]} 5. Nc3 {[%clk 0:03:01]}  e6 {[%clk 0:03:00]} 6. g3 {[%clk 0:03:01]}  Bd7 {[%clk 0:02:59]} 7. Bg2 {[%clk 0:03:01]}  Nc6 {[%clk 0:03:00]} 8. O-O {[%clk 0:03:02]}  Nf6 {[%clk 0:03:00]} 9. Be3 {[%clk 0:03:02]}  Be7 {[%clk 0:03:00]} 10. Qe2 {[%clk 0:03:03]}  O-O {[%clk 0:03:00]} 11. Rad1 {[%clk 0:03:04]}  Qc7 {[%clk 0:02:59]} 12. h3 {[%clk 0:03:04]}  Rac8 {[%clk 0:02:59]} 13. f4 {[%clk 0:03:04]}  Na5 {[%clk 0:02:58]} 14. Kh2 {[%clk 0:03:02]}  Nc4 {[%clk 0:02:57]} 15. Bc1 {[%clk 0:03:02]}  b5 {[%clk 0:02:50]} 16. a3 {[%clk 0:03:02]}  Rfd8 {[%clk 0:02:35]} 17. Rd3 {[%clk 0:02:45]}  Be8 {[%clk 0:02:35]} 18. Rfd1 {[%clk 0:02:45]}  Nd7 {[%clk 0:02:32]} 19. b3 {[%clk 0:02:38]}  Ncb6 {[%clk 0:02:32]} 20. Bb2 {[%clk 0:02:38]}  Bf8 {[%clk 0:02:26]} 21. e5 {[%clk 0:02:32]}  dxe5 {[%clk 0:02:23]} 22. Nc6 {[%clk 0:02:32]}  exf4 {[%clk 0:02:22]} 23. Nxd8 {[%clk 0:02:33]}  fxg3+ {[%clk 0:02:18]} 24. Kh1 {[%clk 0:02:33]}  Rxd8 {[%clk 0:02:16]} 25. Ne4 {[%clk 0:02:32]}  Nd5 {[%clk 0:02:11]} 26. Rxg3 {[%clk 0:02:26]}  Nf4 {[%clk 0:01:50]} 27. Qg4 {[%clk 0:01:54]}  Ng6 {[%clk 0:01:48]} 28. Qh5 {[%clk 0:01:50]}  f5 {[%clk 0:01:29]} 29. Ng5 {[%clk 0:01:07]}  Nf6 {[%clk 0:01:15]} 30. Bxf6 {[%clk 0:00:43]}  Rxd1+ {[%clk 0:01:15]} 31. Kh2 {[%clk 0:00:25]}  gxf6 {[%clk 0:00:52]} 32. Nxe6 {[%clk 0:00:26]}  Qd6 {[%clk 0:00:37]} 33. Nxf8 {[%clk 0:00:18]}  Kxf8 {[%clk 0:00:37]} 34. Qxf5 {[%clk 0:00:16]}  Rd2 {[%clk 0:00:33]} 0-1

[Event "December 5 Late 2023"]
[Site "https://www.chess.com"]
[Date "2023.12.05"]
[Round "6"]
[White "Drygalov, Andrey"]
[Black "Miladinovic, Igor"]
[Result "1/2-1/2"]
[Board "17"]
[TimeControl "180+1"]
[WhiteFideId "24171735"]
[BlackFideId "4203380"]
[WhiteElo "2968"]
[BlackElo "2820"]
[WhiteTeam "RUS"]
[BlackTeam "SRB"]
[WhiteClock "0:00:06"]
[BlackClock "0:00:04"]

1. e4 {[%clk 0:03:00]}  c5 {[%clk 0:02:55]} 2. Nf3 {[%clk 0:03:00]}  Nc6 {[%clk 0:02:55]} 3. Bb5 {[%clk 0:03:01]}  e6 {[%clk 0:02:55]} 4. Bxc6 {[%clk 0:03:01]}  bxc6 {[%clk 0:02:56]} 5. d3 {[%clk 0:03:01]}  Ne7 {[%clk 0:02:56]} 6. Qe2 {[%clk 0:03:01]}  Ng6 {[%clk 0:02:57]} 7. h4 {[%clk 0:02:52]}  h5 {[%clk 0:02:56]} 8. e5 {[%clk 0:02:52]}  d5 {[%clk 0:02:56]} 9. exd6 {[%clk 0:02:47]}  Bxd6 {[%clk 0:02:56]} 10. Nbd2 {[%clk 0:02:46]}  e5 {[%clk 0:02:53]} 11. Nc4 {[%clk 0:02:44]}  Bg4 {[%clk 0:02:50]} 12. Qe4 {[%clk 0:02:43]}  Rc8 {[%clk 0:02:39]} 13. Bg5 {[%clk 0:02:22]}  Qc7 {[%clk 0:02:31]} 14. O-O-O {[%clk 0:02:15]}  O-O {[%clk 0:02:29]} 15. Kb1 {[%clk 0:02:11]}  f5 {[%clk 0:02:26]} 16. Qe3 {[%clk 0:02:11]}  Rce8 {[%clk 0:02:23]} 17. Rde1 {[%clk 0:02:08]}  Qd7 {[%clk 0:02:11]} 18. Qd2 {[%clk 0:02:01]}  Bc7 {[%clk 0:02:07]} 19. Qc3 {[%clk 0:01:51]}  Bxf3 {[%clk 0:01:59]} 20. gxf3 {[%clk 0:01:52]}  Kh7 {[%clk 0:01:57]} 21. Rhg1 {[%clk 0:01:26]}  Qd5 {[%clk 0:01:53]} 22. Ne3 {[%clk 0:01:18]}  Qxf3 {[%clk 0:01:51]} 23. Qxc5 {[%clk 0:01:14]}  Bb6 {[%clk 0:01:47]} 24. Qd6 {[%clk 0:01:14]}  Rf7 {[%clk 0:01:27]} 25. Rg3 {[%clk 0:01:11]}  Qxf2 {[%clk 0:01:24]} 26. Rgg1 {[%clk 0:00:55]}  f4 {[%clk 0:01:14]} 27. Bd8 {[%clk 0:00:44]}  Bxe3 {[%clk 0:00:39]} 28. Qxg6+ {[%clk 0:00:43]}  Kg8 {[%clk 0:00:39]} 29. Bf6 {[%clk 0:00:32]}  Qxg1 {[%clk 0:00:39]} 30. Rxg1 {[%clk 0:00:32]}  Bxg1 {[%clk 0:00:39]} 31. Bxg7 {[%clk 0:00:33]}  Re6 {[%clk 0:00:25]} 32. Bf6+ {[%clk 0:00:23]}  Kf8 {[%clk 0:00:24]} 33. Qh6+ {[%clk 0:00:24]}  Ke8 {[%clk 0:00:24]} 34. Qh8+ {[%clk 0:00:20]}  Rf8 {[%clk 0:00:22]} 35. Qxh5+ {[%clk 0:00:21]}  Kd7 {[%clk 0:00:22]} 36. Bxe5 {[%clk 0:00:14]}  f3 {[%clk 0:00:20]} 37. Bg3 {[%clk 0:00:10]}  f2 {[%clk 0:00:17]} 38. Bxf2 {[%clk 0:00:11]}  Bxf2 {[%clk 0:00:18]} 39. a4 {[%clk 0:00:09]}  Bb6 {[%clk 0:00:16]} 40. a5 {[%clk 0:00:09]}  Bc7 {[%clk 0:00:15]} 41. Qc5 {[%clk 0:00:09]}  Ra8 {[%clk 0:00:14]} 42. h5 {[%clk 0:00:08]}  Bd6 {[%clk 0:00:14]} 43. Qd4 {[%clk 0:00:08]}  Re7 {[%clk 0:00:14]} 44. h6 {[%clk 0:00:07]}  Kc7 {[%clk 0:00:14]} 45. c3 {[%clk 0:00:04]}  Rd7 {[%clk 0:00:12]} 46. Kc2 {[%clk 0:00:04]}  c5 {[%clk 0:00:10]} 47. Qd5 {[%clk 0:00:03]}  Rb8 {[%clk 0:00:11]} 48. a6 {[%clk 0:00:03]}  Rb6 {[%clk 0:00:11]} 49. Qf5 {[%clk 0:00:04]}  Re7 {[%clk 0:00:08]} 50. h7 {[%clk 0:00:04]}  Re2+ {[%clk 0:00:07]} 51. Kd1 {[%clk 0:00:04]}  Rh2 {[%clk 0:00:07]} 52. Qf7+ {[%clk 0:00:03]}  Kc6 {[%clk 0:00:07]} 53. Qe8+ {[%clk 0:00:04]}  Kc7 {[%clk 0:00:06]} 54. h8=Q {[%clk 0:00:04]}  Rxh8 {[%clk 0:00:05]} 55. Qxh8 {[%clk 0:00:05]}  Rxb2 {[%clk 0:00:04]} 56. Qg7+ {[%clk 0:00:05]}  Kc6 {[%clk 0:00:05]} 57. Kc1 {[%clk 0:00:05]}  Rb6 {[%clk 0:00:03]} 58. Kc2 {[%clk 0:00:05]}  Rxa6 {[%clk 0:00:02]} 59. Qf7 {[%clk 0:00:06]}  Bc7 {[%clk 0:00:01]} 60. Qe6+ {[%clk 0:00:06]}  Kb7 {[%clk 0:00:02]} 61. Qd5+ {[%clk 0:00:06]}  Rc6 {[%clk 0:00:03]} 62. Kb3 {[%clk 0:00:06]}  Kb6 {[%clk 0:00:03]} 63. Kc4 {[%clk 0:00:06]}  a6 {[%clk 0:00:03]} 64. Qd7 {[%clk 0:00:06]}  Bd6 {[%clk 0:00:03]} 65. Qd8+ {[%clk 0:00:06]}  Bc7 {[%clk 0:00:03]} 66. Qe8 {[%clk 0:00:07]}  Rd6 {[%clk 0:00:03]} 67. Qe4 {[%clk 0:00:06]}  Rc6 {[%clk 0:00:04]} 68. Kb3 {[%clk 0:00:07]}  Rd6 {[%clk 0:00:03]} 69. Qf5 {[%clk 0:00:07]}  Rc6 {[%clk 0:00:03]} 70. Kc4 {[%clk 0:00:08]}  Kb7 {[%clk 0:00:02]} 71. Qe4 {[%clk 0:00:07]}  Kb6 {[%clk 0:00:03]} 72. Qh1 {[%clk 0:00:07]}  Kb7 {[%clk 0:00:02]} 73. Qb1+ {[%clk 0:00:05]}  Rb6 {[%clk 0:00:01]} 74. Qg1 {[%clk 0:00:05]}  Rc6 {[%clk 0:00:02]} 75. Qg2 {[%clk 0:00:06]}  Kb6 {[%clk 0:00:02]} 76. Qf3 {[%clk 0:00:06]}  Kb7 {[%clk 0:00:03]} 77. Kb3 {[%clk 0:00:07]}  Kb6 {[%clk 0:00:03]} 78. Qe4 {[%clk 0:00:07]}  Kb7 {[%clk 0:00:03]} 79. Kc4 {[%clk 0:00:06]}  Kb6 {[%clk 0:00:04]} 1/2-1/2